[Event "*** Titled Tuesday Blitz"]
[Site "Chess.com"]
[Date "2019.01.01"]
[Round "5"]
[White "Hikaru"]
[Black "TigranLPetrosyan"]
[Result "1/2-1/2"]
[WhiteElo "3050"]
[BlackElo "2835"]
[TimeControl "180+2"]
[EndTime "14:11:13 PST"]
[Termination "Game drawn - insufficient material"]

1. e4 {[%clk 0:03:00.5]} 1... g6 {[%clk 0:03:00.6]} 2. d4 {[%clk 0:03:01.7]}
2... Bg7 {[%clk 0:03:02.5]} 3. Nc3 {[%clk 0:03:03.3]} 3... a6 {[%clk 0:03:01.9]}
4. f4 {[%clk 0:03:03.5]} 4... b5 {[%clk 0:03:03]} 5. Nf3 {[%clk 0:03:04.8]} 5...
d6 {[%clk 0:03:04.6]} 6. Bd3 {[%clk 0:03:06.1]} 6... Nd7 {[%clk 0:03:06.1]} 7.
e5 {[%clk 0:03:05.5]} 7... c5 {[%clk 0:03:07]} 8. Be3 {[%clk 0:02:56.1]} 8...
Bb7 {[%clk 0:02:59.5]} 9. Be4 {[%clk 0:02:49.4]} 9... Qc8 {[%clk 0:02:50.8]} 10.
Bxb7 {[%clk 0:02:47.1]} 10... Qxb7 {[%clk 0:02:52.7]} 11. dxc5 {[%clk
0:02:48.6]} 11... dxe5 {[%clk 0:02:46]} 12. Qd5 {[%clk 0:02:48.6]} 12... Qxd5
{[%clk 0:02:41.6]} 13. Nxd5 {[%clk 0:02:49.7]} 13... Rc8 {[%clk 0:02:43.5]} 14.
Nb6 {[%clk 0:02:50.3]} 14... Rc7 {[%clk 0:02:36.2]} 15. Nxd7 {[%clk 0:01:52.9]}
15... exf4 {[%clk 0:02:32.3]} 16. Bxf4 {[%clk 0:01:54.2]} 16... Rxd7 {[%clk
0:02:33.7]} 17. c3 {[%clk 0:01:55.7]} 17... e5 {[%clk 0:02:26.4]} 18. Bg3 {[%clk
0:01:48.9]} 18... f6 {[%clk 0:02:20.6]} 19. a4 {[%clk 0:01:49.6]} 19... Ne7
{[%clk 0:02:17.4]} 20. axb5 {[%clk 0:01:48.4]} 20... axb5 {[%clk 0:02:19.3]} 21.
Ra5 {[%clk 0:01:42.6]} 21... Rb7 {[%clk 0:02:14.8]} 22. O-O {[%clk 0:01:38]}
22... O-O {[%clk 0:02:13.8]} 23. Rd1 {[%clk 0:01:39]} 23... Kf7 {[%clk
0:02:05.3]} 24. b4 {[%clk 0:01:38]} 24... Bh6 {[%clk 0:01:59.2]} 25. Ra6 {[%clk
0:01:30.9]} 25... Rc8 {[%clk 0:01:52.5]} 26. Rdd6 {[%clk 0:01:28.5]} 26... Bg7
{[%clk 0:01:51.2]} 27. Nd2 {[%clk 0:01:26.4]} 27... Nf5 {[%clk 0:01:50.6]} 28.
Ne4 {[%clk 0:01:25.5]} 28... Nxg3 {[%clk 0:01:48.8]} 29. hxg3 {[%clk 0:01:07.4]}
29... f5 {[%clk 0:01:50.7]} 30. Ng5+ {[%clk 0:01:08.3]} 30... Kg8 {[%clk
0:01:49.9]} 31. Ne6 {[%clk 0:01:06.9]} 31... e4 {[%clk 0:01:44.1]} 32. Nxg7
{[%clk 0:01:06.1]} 32... Kxg7 {[%clk 0:01:46]} 33. Kf2 {[%clk 0:01:02.7]} 33...
Re7 {[%clk 0:01:39.8]} 34. Ke3 {[%clk 0:01:03.7]} 34... Kh6 {[%clk 0:01:27.6]}
35. g4 {[%clk 0:00:57.6]} 35... Kg5 {[%clk 0:01:22.6]} 36. gxf5 {[%clk
0:00:58.5]} 36... gxf5 {[%clk 0:01:24.5]} 37. Rd5 {[%clk 0:00:59.9]} 37... h5
{[%clk 0:01:16.3]} 38. Ra1 {[%clk 0:01:00.1]} 38... Kg4 {[%clk 0:01:03.7]} 39.
Rf1 {[%clk 0:01:00.5]} 39... Rf7 {[%clk 0:01:02.7]} 40. Rf4+ {[%clk 0:01:00.7]}
40... Kg5 {[%clk 0:00:53.5]} 41. Rxe4 {[%clk 0:01:02.1]} 41... Ra8 {[%clk
0:00:55.4]} 42. c6 {[%clk 0:01:02.9]} 42... Rf6 {[%clk 0:00:51.4]} 43. Rc5
{[%clk 0:01:03]} 43... Rc8 {[%clk 0:00:46.4]} 44. c7 {[%clk 0:01:01.8]} 44...
Rf7 {[%clk 0:00:47.7]} 45. Ree5 {[%clk 0:01:01]} 45... Kg4 {[%clk 0:00:42.5]}
46. Rxb5 {[%clk 0:01:00.6]} 46... Rfxc7 {[%clk 0:00:38.1]} 47. Rbc5 {[%clk
0:01:00.4]} 47... f4+ {[%clk 0:00:30.1]} 48. Kf2 {[%clk 0:01:01.5]} 48... Rxc5
{[%clk 0:00:32]} 49. Rxc5 {[%clk 0:01:02.8]} 49... Rd8 {[%clk 0:00:33.9]} 50.
Re5 {[%clk 0:01:03.6]} 50... Rd3 {[%clk 0:00:33]} 51. Re2 {[%clk 0:01:05]} 51...
Rxc3 {[%clk 0:00:34.1]} 52. Rb2 {[%clk 0:01:06.5]} 52... f3 {[%clk 0:00:29.6]}
53. g3 {[%clk 0:01:05.2]} 53... h4 {[%clk 0:00:26.4]} 54. gxh4 {[%clk
0:01:06.2]} 54... Kxh4 {[%clk 0:00:22.6]} 55. b5 {[%clk 0:01:08.1]} 55... Kg5
{[%clk 0:00:23.7]} 56. b6 {[%clk 0:01:03.6]} 56... Rc8 {[%clk 0:00:24.6]} 57.
Ke3 {[%clk 0:01:05.3]} 57... Rb8 {[%clk 0:00:21.5]} 58. b7 {[%clk 0:01:04.1]}
58... Kf5 {[%clk 0:00:21.8]} 59. Kd4 {[%clk 0:01:05]} 59... Ke6 {[%clk
0:00:21.2]} 60. Kc5 {[%clk 0:01:06.6]} 60... f2 {[%clk 0:00:22.6]} 61. Re2+
{[%clk 0:01:07.3]} 61... Kd7 {[%clk 0:00:23.1]} 62. Rxf2 {[%clk 0:01:09.2]}
62... Rxb7 {[%clk 0:00:24.2]} 63. Rf7+ {[%clk 0:01:08.6]} 63... Kc8 {[%clk
0:00:25.1]} 64. Rxb7 {[%clk 0:01:10.5]} 64... Kxb7 {[%clk 0:00:26.2]} 1/2-1/2

[Event "*** Titled Tuesday Blitz"]
[Site "Chess.com"]
[Date "2019.01.01"]
[Round "5"]
[White "Justinz"]
[Black "dolynachess"]
[Result "0-1"]
[WhiteElo "2346"]
[BlackElo "2370"]
[TimeControl "180+2"]
[EndTime "14:11:13 PST"]
[Termination "dolynachess won by resignation"]

1. d4 {[%clk 0:02:54.5]} 1... Nf6 {[%clk 0:03:00.3]} 2. c4 {[%clk 0:02:55.4]}
2... e6 {[%clk 0:03:01]} 3. Nc3 {[%clk 0:02:56.6]} 3... Bb4 {[%clk 0:03:00]} 4.
Qc2 {[%clk 0:02:57.3]} 4... d5 {[%clk 0:02:59.9]} 5. a3 {[%clk 0:02:56.2]} 5...
Bxc3+ {[%clk 0:02:59.1]} 6. Qxc3 {[%clk 0:02:58.1]} 6... O-O {[%clk 0:03:00.1]}
7. Bg5 {[%clk 0:02:57.6]} 7... h6 {[%clk 0:02:56.5]} 8. Bh4 {[%clk 0:02:57.6]}
8... dxc4 {[%clk 0:02:57.8]} 9. Qxc4 {[%clk 0:02:55.6]} 9... b6 {[%clk
0:02:58.5]} 10. Nf3 {[%clk 0:02:56.3]} 10... Ba6 {[%clk 0:02:59.3]} 11. Qc2
{[%clk 0:02:57.3]} 11... Nbd7 {[%clk 0:02:57]} 12. e4 {[%clk 0:02:58.2]} 12...
Bxf1 {[%clk 0:02:56.1]} 13. Rxf1 {[%clk 0:02:58.9]} 13... Qc8 {[%clk 0:02:53.3]}
14. O-O-O {[%clk 0:02:54.1]} 14... Qb7 {[%clk 0:02:48.7]} 15. Rfe1 {[%clk
0:02:24.7]} 15... c5 {[%clk 0:02:47.9]} 16. d5 {[%clk 0:02:23.7]} 16... exd5
{[%clk 0:02:45.4]} 17. exd5 {[%clk 0:02:25.6]} 17... Nxd5 {[%clk 0:02:45.7]} 18.
Qe4 {[%clk 0:02:12.8]} 18... g5 {[%clk 0:02:14.8]} 19. Qxd5 {[%clk 0:02:12.1]}
19... Qxd5 {[%clk 0:02:15.9]} 20. Rxd5 {[%clk 0:02:12.8]} 20... Nf6 {[%clk
0:02:17.4]} 21. Rf5 {[%clk 0:02:13.5]} 21... Kg7 {[%clk 0:02:05.4]} 22. Bg3
{[%clk 0:02:13.4]} 22... Kg6 {[%clk 0:02:06.7]} 23. Rfe5 {[%clk 0:02:13.6]}
23... Rad8 {[%clk 0:02:04.6]} 24. h4 {[%clk 0:02:09.9]} 24... g4 {[%clk
0:02:02.5]} 25. Nd2 {[%clk 0:02:04.5]} 25... Rd4 {[%clk 0:01:55.8]} 26. Ne4
{[%clk 0:02:04.5]} 26... Nh5 {[%clk 0:01:43.3]} 27. Rd1 {[%clk 0:01:39]} 27...
Rfd8 {[%clk 0:01:42.9]} 28. Rxd4 {[%clk 0:01:39.7]} 28... Rxd4 {[%clk
0:01:44.8]} 29. Kc2 {[%clk 0:01:20.7]} 29... f6 {[%clk 0:01:44.7]} 30. Re7
{[%clk 0:01:19.2]} 30... Rc4+ {[%clk 0:01:37.8]} 31. Kd3 {[%clk 0:01:16.2]}
31... Rd4+ {[%clk 0:01:38.7]} 32. Ke3 {[%clk 0:01:16.9]} 32... Rd1 {[%clk
0:01:37]} 33. Rxa7 {[%clk 0:01:04.5]} 33... f5 {[%clk 0:01:26.6]} 34. Nc3 {[%clk
0:01:04]} 34... Re1+ {[%clk 0:01:21.7]} 35. Kd2 {[%clk 0:01:03]} 35... Rg1
{[%clk 0:01:22.7]} 36. Bc7 {[%clk 0:00:57.5]} 36... Rxg2 {[%clk 0:01:22.3]} 37.
Bxb6 {[%clk 0:00:58.8]} 37... Rxf2+ {[%clk 0:01:21.1]} 38. Kc1 {[%clk 0:00:59]}
38... Nf4 {[%clk 0:01:21]} 39. Ra6 {[%clk 0:00:52.2]} 39... Kh5 {[%clk
0:01:19.5]} 40. b4 {[%clk 0:00:39.7]} 40... Nd3+ {[%clk 0:01:15.3]} 41. Kd1
{[%clk 0:00:34.3]} 41... Nb2+ {[%clk 0:01:14.6]} 42. Kc1 {[%clk 0:00:35.5]}
42... Nd3+ {[%clk 0:01:16.1]} 43. Kb1 {[%clk 0:00:36.7]} 43... Rb2+ {[%clk
0:01:13.7]} 44. Ka1 {[%clk 0:00:36.7]} 44... cxb4 {[%clk 0:01:14.2]} 45. axb4
{[%clk 0:00:37.2]} 45... Rxb4 {[%clk 0:01:14.9]} 46. Nd5 {[%clk 0:00:30.5]}
46... Rb5 {[%clk 0:01:07.3]} 47. Ra5 {[%clk 0:00:30.4]} 47... Rxa5+ {[%clk
0:01:07]} 48. Bxa5 {[%clk 0:00:32.3]} 48... Kxh4 {[%clk 0:01:07.9]} 49. Kb1
{[%clk 0:00:31.8]} 49... Kg3 {[%clk 0:01:02]} 50. Kc2 {[%clk 0:00:27.4]} 50...
Nf2 {[%clk 0:00:59.8]} 51. Be1 {[%clk 0:00:23.3]} 51... Kf3 {[%clk 0:01:00.7]}
52. Nf6 {[%clk 0:00:15.3]} 52... g3 {[%clk 0:00:57.8]} 0-1

[Event "*** Titled Tuesday Blitz"]
[Site "Chess.com"]
[Date "2019.01.01"]
[Round "5"]
[White "nurgyulsalimova"]
[Black "guillembaches"]
[Result "0-1"]
[WhiteElo "2467"]
[BlackElo "2361"]
[TimeControl "180+2"]
[EndTime "14:11:16 PST"]
[Termination "guillembaches won by resignation"]

1. e4 {[%clk 0:03:01]} 1... c5 {[%clk 0:03:00.5]} 2. Nf3 {[%clk 0:03:02]} 2...
d6 {[%clk 0:03:01.7]} 3. d4 {[%clk 0:03:03]} 3... cxd4 {[%clk 0:03:03.6]} 4.
Nxd4 {[%clk 0:03:04.4]} 4... Nf6 {[%clk 0:03:05.2]} 5. Nc3 {[%clk 0:03:05.5]}
5... Nc6 {[%clk 0:03:06.8]} 6. Bg5 {[%clk 0:03:06.5]} 6... e6 {[%clk 0:03:08.2]}
7. Qd2 {[%clk 0:03:04.4]} 7... h6 {[%clk 0:03:09.6]} 8. Bh4 {[%clk 0:03:00.8]}
8... Nxe4 {[%clk 0:03:10.5]} 9. Qf4 {[%clk 0:01:36]} 9... Nf6 {[%clk 0:03:10.1]}
10. Bxf6 {[%clk 0:01:29.9]} 10... Qxf6 {[%clk 0:03:01.2]} 11. Qxf6 {[%clk
0:01:30]} 11... gxf6 {[%clk 0:03:03.1]} 12. Ndb5 {[%clk 0:01:31.5]} 12... Kd8
{[%clk 0:03:03.7]} 13. Ne4 {[%clk 0:01:30.3]} 13... d5 {[%clk 0:02:57.1]} 14.
O-O-O {[%clk 0:01:23.3]} 14... Ke7 {[%clk 0:02:41.8]} 15. Ng3 {[%clk 0:01:13.6]}
15... h5 {[%clk 0:02:31.9]} 16. h4 {[%clk 0:01:10.6]} 16... Bh6+ {[%clk
0:02:26.1]} 17. Kb1 {[%clk 0:01:12]} 17... Bf4 {[%clk 0:02:27]} 18. Ne2 {[%clk
0:01:12.1]} 18... Bb8 {[%clk 0:02:25]} 19. g3 {[%clk 0:01:08.1]} 19... a6 {[%clk
0:02:23.4]} 20. Nbc3 {[%clk 0:01:07]} 20... Ba7 {[%clk 0:02:18.5]} 21. f3 {[%clk
0:01:05]} 21... Ne5 {[%clk 0:02:16.5]} 22. Nf4 {[%clk 0:00:58.3]} 22... b5
{[%clk 0:02:01.2]} 23. a3 {[%clk 0:00:54.1]} 23... Bb7 {[%clk 0:01:59.9]} 24.
Be2 {[%clk 0:00:48.3]} 24... Rac8 {[%clk 0:01:57.1]} 25. Rhe1 {[%clk 0:00:45.7]}
25... Bf2 {[%clk 0:01:57.5]} 26. Rf1 {[%clk 0:00:46.5]} 26... Bxg3 {[%clk
0:01:58.6]} 27. Ng2 {[%clk 0:00:41.4]} 27... Nc4 {[%clk 0:01:54.4]} 28. Na2
{[%clk 0:00:31.1]} 28... Bd6 {[%clk 0:01:45.4]} 29. f4 {[%clk 0:00:29.3]} 29...
Rhg8 {[%clk 0:01:45.1]} 30. Bf3 {[%clk 0:00:24.2]} 30... Rg3 {[%clk 0:01:42.6]}
31. Rd3 {[%clk 0:00:17.6]} 31... Rcg8 {[%clk 0:01:40.6]} 32. Ne1 {[%clk
0:00:18.3]} 32... Rg1 {[%clk 0:01:35.3]} 33. Rxg1 {[%clk 0:00:14]} 33... Rxg1
{[%clk 0:01:37.2]} 34. Rd1 {[%clk 0:00:14.2]} 34... Bxf4 {[%clk 0:01:33.3]} 35.
Bxh5 {[%clk 0:00:13.9]} 35... Bg3 {[%clk 0:01:26.3]} 36. Nd3 {[%clk 0:00:13.9]}
36... Rxd1+ {[%clk 0:01:24.6]} 37. Bxd1 {[%clk 0:00:15.8]} 37... Bxh4 {[%clk
0:01:25.4]} 38. Bh5 {[%clk 0:00:14.8]} 38... e5 {[%clk 0:01:22.4]} 39. Nab4
{[%clk 0:00:15.5]} 39... f5 {[%clk 0:01:20.3]} 40. Nc5 {[%clk 0:00:16.3]} 40...
Bc8 {[%clk 0:01:19]} 41. b3 {[%clk 0:00:06.3]} 41... Nd2+ {[%clk 0:01:06.9]} 42.
Kb2 {[%clk 0:00:05.9]} 42... f4 {[%clk 0:01:05.4]} 43. Ncd3 {[%clk 0:00:03.3]}
43... Kd6 {[%clk 0:01:00]} 44. Bxf7 {[%clk 0:00:03.2]} 44... Be6 {[%clk
0:00:53.5]} 45. Bxe6 {[%clk 0:00:04.1]} 45... Kxe6 {[%clk 0:00:55.4]} 46. Nxa6
{[%clk 0:00:05.8]} 46... f3 {[%clk 0:00:52.6]} 47. Nc7+ {[%clk 0:00:07]} 47...
Kf5 {[%clk 0:00:51.5]} 48. Nxd5 {[%clk 0:00:08.3]} 48... e4 {[%clk 0:00:47.8]}
49. Ne3+ {[%clk 0:00:08.3]} 49... Kg5 {[%clk 0:00:47.1]} 50. Nc5 {[%clk
0:00:08]} 50... Kf4 {[%clk 0:00:46.2]} 51. Nd5+ {[%clk 0:00:07.5]} 51... Kg3
{[%clk 0:00:46.9]} 52. Nc3 {[%clk 0:00:07.5]} 52... Bf6 {[%clk 0:00:45.5]} 53.
a4 {[%clk 0:00:05.9]} 53... bxa4 {[%clk 0:00:45.7]} 54. bxa4 {[%clk 0:00:06.7]}
54... f2 {[%clk 0:00:45.3]} 0-1

[Event "*** Titled Tuesday Blitz"]
[Site "Chess.com"]
[Date "2019.01.01"]
[Round "5"]
[White "cherryandmint"]
[Black "Shahinyan_ChessMood"]
[Result "0-1"]
[WhiteElo "2610"]
[BlackElo "2695"]
[TimeControl "180+2"]
[EndTime "14:11:30 PST"]
[Termination "Shahinyan_ChessMood won on time"]

1. e4 {[%clk 0:03:01.9]} 1... e6 {[%clk 0:03:00.4]} 2. d4 {[%clk 0:03:02.5]}
2... d5 {[%clk 0:03:02.3]} 3. e5 {[%clk 0:03:02.9]} 3... c5 {[%clk 0:03:03.2]}
4. c3 {[%clk 0:03:04.1]} 4... Nc6 {[%clk 0:03:05.1]} 5. Nf3 {[%clk 0:03:05.2]}
5... Qb6 {[%clk 0:03:06.7]} 6. a3 {[%clk 0:03:05.7]} 6... Nh6 {[%clk 0:03:07.6]}
7. b4 {[%clk 0:03:06.7]} 7... cxd4 {[%clk 0:03:09.1]} 8. Bxh6 {[%clk 0:03:08.3]}
8... gxh6 {[%clk 0:03:11]} 9. cxd4 {[%clk 0:03:09.8]} 9... Bd7 {[%clk
0:03:11.9]} 10. Be2 {[%clk 0:03:10.3]} 10... Rc8 {[%clk 0:03:12.3]} 11. O-O
{[%clk 0:03:09.7]} 11... Bg7 {[%clk 0:03:11.8]} 12. Qd2 {[%clk 0:03:00.9]} 12...
O-O {[%clk 0:03:03.1]} 13. Nc3 {[%clk 0:03:01.4]} 13... f6 {[%clk 0:03:04.1]}
14. Na4 {[%clk 0:02:59.7]} 14... Qd8 {[%clk 0:03:04.3]} 15. exf6 {[%clk
0:02:55.8]} 15... Rxf6 {[%clk 0:03:00.4]} 16. Nc5 {[%clk 0:02:44.9]} 16... b6
{[%clk 0:02:58.7]} 17. Nxd7 {[%clk 0:02:45]} 17... Qxd7 {[%clk 0:03:00.6]} 18.
Rac1 {[%clk 0:02:45.2]} 18... Qd6 {[%clk 0:02:38.8]} 19. b5 {[%clk 0:02:32.5]}
19... Ne7 {[%clk 0:02:32]} 20. Rxc8+ {[%clk 0:02:32.9]} 20... Nxc8 {[%clk
0:02:33.9]} 21. Ne5 {[%clk 0:02:12.6]} 21... Qxa3 {[%clk 0:02:26.1]} 22. Qc1
{[%clk 0:01:12.3]} 22... Qxc1 {[%clk 0:01:59.6]} 23. Rxc1 {[%clk 0:01:14.2]}
23... Nd6 {[%clk 0:02:01.5]} 24. Rc7 {[%clk 0:01:13.8]} 24... Rf8 {[%clk
0:01:42.7]} 25. Rxa7 {[%clk 0:00:51.7]} 25... Nf5 {[%clk 0:01:18.7]} 26. Nd7
{[%clk 0:00:31.2]} 26... Rc8 {[%clk 0:01:12.5]} 27. g3 {[%clk 0:00:14.7]} 27...
Bxd4 {[%clk 0:01:08.8]} 28. Bd3 {[%clk 0:00:15.9]} 28... Rc3 {[%clk 0:00:58]}
29. Bxf5 {[%clk 0:00:16.3]} 29... exf5 {[%clk 0:00:59.9]} 30. Rb7 {[%clk
0:00:11.4]} 30... Rb3 {[%clk 0:00:54.7]} 31. Nxb6 {[%clk 0:00:06.7]} 31... Rxb5
{[%clk 0:00:54.5]} 32. Rb8+ {[%clk 0:00:08]} 32... Kf7 {[%clk 0:00:54.6]} 33.
Nd7 {[%clk 0:00:07.8]} 33... Rxb8 {[%clk 0:00:52.3]} 34. Nxb8 {[%clk 0:00:09.7]}
34... Ke6 {[%clk 0:00:53.6]} 35. Nc6 {[%clk 0:00:07.3]} 35... Bc3 {[%clk
0:00:54.9]} 36. Kf1 {[%clk 0:00:05.1]} 36... Kd7 {[%clk 0:00:44.3]} 37. Na7
{[%clk 0:00:05.9]} 37... Bd4 {[%clk 0:00:24.9]} 38. Nb5 {[%clk 0:00:05.7]} 38...
Bb2 {[%clk 0:00:25.5]} 39. Na7 {[%clk 0:00:04.3]} 39... Kc7 {[%clk 0:00:23]} 40.
Ke2 {[%clk 0:00:05]} 40... Kb7 {[%clk 0:00:21.5]} 41. Nb5 {[%clk 0:00:06.1]}
41... Kc6 {[%clk 0:00:21.9]} 42. Na7+ {[%clk 0:00:07]} 42... Kc5 {[%clk
0:00:20.6]} 43. Kd3 {[%clk 0:00:05.9]} 43... Bf6 {[%clk 0:00:21.2]} 44. f3
{[%clk 0:00:05.1]} 44... h5 {[%clk 0:00:22.3]} 45. h3 {[%clk 0:00:05.7]} 45...
h6 {[%clk 0:00:22.5]} 46. g4 {[%clk 0:00:07]} 46... hxg4 {[%clk 0:00:23.5]} 47.
hxg4 {[%clk 0:00:08.1]} 47... f4 {[%clk 0:00:22.3]} 48. Nc8 {[%clk 0:00:08.2]}
48... Bd8 {[%clk 0:00:23]} 49. Na7 {[%clk 0:00:07.1]} 49... Be7 {[%clk
0:00:16.9]} 50. Nc8 {[%clk 0:00:07.8]} 50... Bf8 {[%clk 0:00:18]} 0-1

[Event "*** Titled Tuesday Blitz"]
[Site "Chess.com"]
[Date "2019.01.01"]
[Round "5"]
[White "enriquetejedor"]
[Black "Quiet_Desperation"]
[Result "1/2-1/2"]
[WhiteElo "2550"]
[BlackElo "2376"]
[TimeControl "180+2"]
[EndTime "14:11:32 PST"]
[Termination "Game drawn - insufficient material"]

1. e4 {[%clk 0:03:01.9]} 1... Nc6 {[%clk 0:03:00.4]} 2. Nf3 {[%clk 0:03:02.6]}
2... d6 {[%clk 0:03:00.8]} 3. d4 {[%clk 0:03:02.6]} 3... Nf6 {[%clk 0:03:02.5]}
4. Nc3 {[%clk 0:03:02.7]} 4... d5 {[%clk 0:03:04]} 5. exd5 {[%clk 0:03:02]} 5...
Nxd5 {[%clk 0:03:04.3]} 6. Bc4 {[%clk 0:03:03.5]} 6... e6 {[%clk 0:03:03.4]} 7.
O-O {[%clk 0:03:03.9]} 7... Bd6 {[%clk 0:03:04.3]} 8. Ne4 {[%clk 0:03:04.3]}
8... O-O {[%clk 0:03:04.8]} 9. c3 {[%clk 0:03:05.5]} 9... Be7 {[%clk 0:03:04]}
10. Re1 {[%clk 0:03:06.2]} 10... f5 {[%clk 0:03:05.3]} 11. Neg5 {[%clk
0:03:06.8]} 11... Rf6 {[%clk 0:03:00.1]} 12. Bd2 {[%clk 0:03:05.9]} 12... Rg6
{[%clk 0:03:01.2]} 13. b4 {[%clk 0:03:05.1]} 13... Bxg5 {[%clk 0:02:59.4]} 14.
Nxg5 {[%clk 0:03:07]} 14... Rxg5 {[%clk 0:03:00.8]} 15. Bxg5 {[%clk 0:03:08.9]}
15... Qxg5 {[%clk 0:03:02.2]} 16. Qf3 {[%clk 0:03:08.8]} 16... Nce7 {[%clk
0:02:39.7]} 17. Re5 {[%clk 0:03:06.1]} 17... c6 {[%clk 0:02:37.8]} 18. b5 {[%clk
0:03:06.3]} 18... Bd7 {[%clk 0:02:38.5]} 19. bxc6 {[%clk 0:03:06.5]} 19... bxc6
{[%clk 0:02:38.9]} 20. Rb1 {[%clk 0:03:04.4]} 20... Rf8 {[%clk 0:02:35.6]} 21.
h4 {[%clk 0:03:03.4]} 21... Qd2 {[%clk 0:02:34.9]} 22. Rb7 {[%clk 0:03:03.9]}
22... Bc8 {[%clk 0:02:31.8]} 23. Rxa7 {[%clk 0:02:54.9]} 23... Ng6 {[%clk
0:02:24.5]} 24. Re2 {[%clk 0:02:39.9]} 24... Qd1+ {[%clk 0:01:48.6]} 25. Kh2
{[%clk 0:02:38.1]} 25... Nxh4 {[%clk 0:01:45.9]} 26. Qg3 {[%clk 0:02:37.9]}
26... Ng6 {[%clk 0:01:45.8]} 27. Bxd5 {[%clk 0:02:37]} 27... Qxe2 {[%clk
0:01:43.1]} 28. Bf3 {[%clk 0:02:37.3]} 28... Qd2 {[%clk 0:01:40.6]} 29. Qc7
{[%clk 0:02:15.1]} 29... Qf4+ {[%clk 0:01:40.8]} 30. Qxf4 {[%clk 0:02:14.6]}
30... Nxf4 {[%clk 0:01:42.7]} 31. Bxc6 {[%clk 0:02:16.4]} 31... Ne2 {[%clk
0:01:23.8]} 32. d5 {[%clk 0:02:08.3]} 32... exd5 {[%clk 0:01:17.5]} 33. Bxd5+
{[%clk 0:02:10.2]} 33... Kh8 {[%clk 0:01:18.4]} 34. c4 {[%clk 0:02:11.5]} 34...
f4 {[%clk 0:01:17.1]} 35. a4 {[%clk 0:02:09.7]} 35... Nd4 {[%clk 0:01:15.7]} 36.
Ra8 {[%clk 0:02:08.5]} 36... g5 {[%clk 0:01:07.8]} 37. a5 {[%clk 0:02:02.9]}
37... Kg7 {[%clk 0:01:08]} 38. a6 {[%clk 0:02:03.4]} 38... Bxa6 {[%clk
0:00:53.7]} 39. Ra7+ {[%clk 0:02:02.1]} 39... Kg6 {[%clk 0:00:46.5]} 40. Rxa6+
{[%clk 0:01:59.2]} 40... Rf6 {[%clk 0:00:48]} 41. Be4+ {[%clk 0:02:00.2]} 41...
Nf5 {[%clk 0:00:49.3]} 42. Ra5 {[%clk 0:01:59.9]} 42... h5 {[%clk 0:00:49.1]}
43. Rxf5 {[%clk 0:01:35.5]} 43... Rxf5 {[%clk 0:00:48.2]} 44. c5 {[%clk
0:01:34.9]} 44... Kf6 {[%clk 0:00:49.6]} 45. Bxf5 {[%clk 0:01:35.7]} 45... Kxf5
{[%clk 0:00:50.8]} 46. g3 {[%clk 0:01:37.6]} 46... fxg3+ {[%clk 0:00:50.6]} 47.
fxg3 {[%clk 0:00:56.4]} 47... Ke5 {[%clk 0:00:49.4]} 48. Kg2 {[%clk 0:00:57.4]}
48... Kd5 {[%clk 0:00:50.5]} 49. Kf3 {[%clk 0:00:58.9]} 49... Kxc5 {[%clk
0:00:44.1]} 50. Ke4 {[%clk 0:00:58.9]} 50... Kd6 {[%clk 0:00:28.1]} 51. Kf5
{[%clk 0:00:58.7]} 51... h4 {[%clk 0:00:29.4]} 52. gxh4 {[%clk 0:00:03.9]} 52...
gxh4 {[%clk 0:00:28.9]} 53. Kg4 {[%clk 0:00:05.8]} 53... Ke5 {[%clk 0:00:30]}
54. Kh3 {[%clk 0:00:07.7]} 54... Kf6 {[%clk 0:00:31.9]} 55. Kh2 {[%clk
0:00:08.1]} 55... Kg7 {[%clk 0:00:33.8]} 56. Kh3 {[%clk 0:00:09]} 56... Kh6
{[%clk 0:00:35.7]} 57. Kxh4 {[%clk 0:00:10.9]} 1/2-1/2